fUST/lending_fUST_20240830
["ID","MTS","AMOUNT","RATE_DAILY","PERIOD"]
[336628776,1724981444714,-200.0,0.00019726,2]
[336628777,1724981444723,-500.0,0.00019726,2]
[336628778,1724981444732,-500.0,0.00019726,2]
[336628779,1724981444741,-500.0,0.00019726,2]
[336628780,1724981444751,-500.0,0.00019726,2]
[336628781,1724981444760,-500.0,0.00019726,2]
[336628782,1724981444769,-253.87866814,0.00019726,2]
[336628783,1724981444779,-500.0,0.00019726,2]
[336628784,1724981444789,-500.0,0.00019726,2]
[336628785,1724981444799,-500.0,0.00019726,2]
[336628786,1724981444810,-500.0,0.00019726,2]
[336628787,1724981444820,-500.0,0.00019726,2]
[336628788,1724981444831,-500.0,0.00019726,2]
[336628789,1724981444840,-500.0,0.00019726,2]
[336628790,1724981444852,-647.87006426,0.00019726,2]
[336628791,1724981444861,-912.43,0.00019726,2]
[336628792,1724981444873,-500.0,0.00019726,2]
[336628793,1724981444883,-500.0,0.00019726,2]
[336628794,1724981444892,-883.62,0.00019726,2]
[336628795,1724981444902,-500.0,0.00019726,2]
[336628796,1724981444911,-500.0,0.00019726,2]
[336628797,1724981444921,-500.0,0.00019726,2]
[336628798,1724981444930,-500.0,0.00019726,2]
[336628799,1724981444939,-500.0,0.00019726,2]
[336628800,1724981444948,-500.0,0.00019726,2]
[336628801,1724981444957,-500.0,0.00019726,2]
[336628802,1724981444966,-500.0,0.00019726,2]
[336628803,1724981444975,-500.0,0.00019726,2]
[336628804,1724981444984,-733.84,0.00019726,2]
[336628805,1724981444993,-369.87524195,0.00019726,2]
[336628806,1724981445002,-500.0,0.00019726,2]
[336628807,1724981445011,-500.0,0.00019726,2]
[336628808,1724981445020,-954.1,0.00019726,2]
[336628809,1724981445029,-500.0,0.00019726,2]
[336628810,1724981445039,-500.0,0.00019726,2]
[336628811,1724981445047,-705.6,0.00019726,2]
[336628812,1724981445056,-763.3,0.00019726,2]
[336628813,1724981445065,-500.0,0.00019726,2]
[336628814,1724981445075,-368.78569683,0.00019726,2]
[336628815,1724981445084,-2003.9,0.00019726,2]
[336628816,1724981445093,-2100.77,0.00019726,2]
[336628817,1724981445102,-500.0,0.00019726,2]
[336628818,1724981445112,-524.71,0.00019726,2]
[336628819,1724981445123,-8591.91,0.00019726,2]
[336628820,1724981445132,-500.0,0.00019726,2]
[336628821,1724981445141,-525.71,0.00019726,2]
[336628822,1724981445150,-2403.84,0.00019726,2]
[336628823,1724981445160,-192.336792,0.00019726,2]
[336628824,1724981445169,-500.0,0.00019726,2]
[336628825,1724981445178,-500.0,0.00019726,2]
[336628826,1724981445188,-550.47,0.00019726,2]
[336628827,1724981445197,-500.0,0.00019726,2]
[336628828,1724981445207,-330.75891153,0.00019726,2]
[336628829,1724981445217,-1963.37,0.00019726,2]
[336628830,1724981445226,-647.31,0.00019726,2]
[336628831,1724981445236,-500.0,0.00019726,2]
[336628832,1724981445245,-500.0,0.00019726,2]
[336628833,1724981445255,-500.0,0.00019726,2]
[336628834,1724981445264,-500.0,0.00019726,2]
[336628835,1724981445274,-557.01,0.00019726,2]
[336628836,1724981445284,-500.0,0.00019726,2]
[336628837,1724981445294,-500.0,0.00019726,2]
[336628838,1724981445304,-500.0,0.00019726,2]
[336628839,1724981445313,-500.0,0.00019726,2]
[336628840,1724981445322,-500.0,0.00019726,2]
[336628841,1724981445331,-762.74,0.00019726,2]
[336628842,1724981445340,-607.66,0.00019726,2]
[336628843,1724981445350,-1076.27,0.00019726,2]
[336628844,1724981445359,-500.0,0.00019726,2]
[336628845,1724981445375,-500.0,0.00019726,2]
[336628846,1724981445384,-500.0,0.00019726,2]
[336628847,1724981445393,-500.0,0.00019726,2]
[336628848,1724981445403,-500.0,0.00019726,2]
[336628849,1724981445413,-500.0,0.00019726,2]
[336628850,1724981445422,-500.0,0.00019726,2]
[336628851,1724981445432,-500.0,0.00019726,2]
[336628852,1724981445443,-500.0,0.00019726,2]
[336628853,1724981445454,-604.91,0.00019726,2]
[336628854,1724981445464,-500.0,0.00019726,2]
[336628855,1724981445474,-151.0,0.00019726,2]
[336628856,1724981445483,-151.0,0.00019726,2]
[336628857,1724981445496,-151.0,0.00019726,2]
[336628858,1724981445507,-500.0,0.00019726,2]
[336628859,1724981445516,-500.0,0.00019726,2]
[336628860,1724981445526,-500.0,0.00019726,2]
[336628861,1724981445536,-535.18,0.00019726,2]
[336628862,1724981445546,-500.0,0.00019726,2]
[336628863,1724981445555,-1722.82,0.00019726,2]
[336628864,1724981445566,-500.0,0.00019726,2]
[336628865,1724981445576,-500.0,0.00019726,2]
[336628866,1724981445585,-500.0,0.00019726,2]
[336628867,1724981445595,-507.26,0.00019726,2]
[336628868,1724981445604,-500.0,0.00019726,2]
[336628869,1724981445614,-785.92,0.00019726,2]
[336628870,1724981445625,-500.0,0.00019726,2]
[336628871,1724981445635,-500.0,0.00019726,2]
[336628872,1724981445645,-531.01,0.00019726,2]
[336628873,1724981445655,-606.73,0.00019726,2]
[336628874,1724981445664,-814.38,0.00019726,2]
[336628875,1724981445674,-638.44629429,0.00019726,2]
[336628876,1724981445683,-225.47795429,0.00019726,2]
[336628877,1724981445693,-500.0,0.00019726,2]
[336628878,1724981445703,-5006.8,0.00019726,2]
[336628879,1724981445712,-3039.49,0.00019726,2]
[336628880,1724981445721,-517.3,0.00019726,2]
[336628881,1724981445730,-500.0,0.00019726,2]
[336628882,1724981445740,-500.0,0.00019726,2]
[336628883,1724981445750,-539.44,0.00019726,2]
[336628884,1724981445760,-585.79,0.00019726,2]
[336628885,1724981445769,-500.0,0.00019726,2]
[336628886,1724981445778,-500.0,0.00019726,2]
[336628887,1724981445788,-2062.64,0.00019726,2]
[336628888,1724981445798,-500.0,0.00019726,2]
[336628889,1724981445807,-1827.66,0.00019726,2]
[336628890,1724981445816,-500.0,0.00019726,2]
[336628891,1724981445827,-500.0,0.00019726,2]
[336628892,1724981445837,-500.0,0.00019726,2]
[336628893,1724981445846,-1702.51,0.00019726,2]
[336628894,1724981445855,-565.26,0.00019726,2]
[336628895,1724981445866,-250.85233764,0.00019726,2]
[336628896,1724981445878,-500.0,0.00019726,2]
[336628897,1724981445887,-518.57,0.00019726,2]
[336628898,1724981445897,-641.02,0.00019726,2]
[336628899,1724981445907,-993.02,0.00019726,2]
[336628900,1724981445916,-500.0,0.00019726,2]
[336628901,1724981445925,-1272.38,0.00019726,2]
[336628902,1724981445934,-500.0,0.00019726,2]
[336628903,1724981445943,-1258.18,0.00019726,2]
[336628905,1724981445953,-500.0,0.00019726,2]
[336628906,1724981445963,-500.0,0.00019726,2]
[336628907,1724981445974,-1179.58,0.00019726,2]
[336628908,1724981445984,-3944.0,0.00019726,2]
[336628909,1724981445994,-801.9,0.00019726,2]
[336628910,1724981446004,-2252.08,0.00019726,2]
[336628911,1724981446016,-500.0,0.00019726,2]
[336628912,1724981446026,-409.4593805,0.00019726,2]
[336628913,1724981446035,-409.4593805,0.00019726,2]
[336628914,1724981446045,-409.4593805,0.00019726,2]
[336628915,1724981446055,-409.4593805,0.00019726,2]
[336628916,1724981446067,-409.4593805,0.00019726,2]
[336628917,1724981446077,-409.4593805,0.00019726,2]
[336628918,1724981446088,-409.4593805,0.00019726,2]
[336628919,1724981446099,-409.4593805,0.00019726,2]
[336628920,1724981446109,-818.0608846,0.00019726,2]
[336628921,1724981446121,-150.112233,0.000198,2]
[336628922,1724981446133,-150.112233,0.000198,2]
[336628923,1724981446143,-1901.06494879,0.00019811,2]
[336628924,1724981446152,-500.0,0.00019821,7]
[336628925,1724981446162,-500.0,0.00019821,7]
[336628926,1724981446171,-500.0,0.00019821,7]
[336628927,1724981446180,-500.0,0.00019821,7]
[336628928,1724981446191,-500.0,0.00019821,7]
[336628929,1724981446202,-361.58,0.00019821,7]
[336628930,1724981446211,-500.0,0.00019821,7]
[336628931,1724981446221,-500.0,0.00019821,7]
[336628932,1724981446230,-500.0,0.00019821,7]
[336628933,1724981446239,-500.0,0.00019821,7]
[336628934,1724981446249,-500.0,0.00019821,7]
[336628935,1724981446258,-500.0,0.00019821,7]
[336628937,1724981446269,-500.0,0.00019821,7]
[336628938,1724981446279,-500.0,0.00019821,7]
[336628940,1724981446291,-500.0,0.00019821,7]
[336628942,1724981446301,-500.0,0.00019821,7]
[336628944,1724981446311,-500.0,0.00019821,7]
[336628946,1724981446322,-500.0,0.00019821,7]
[336628948,1724981446333,-500.0,0.00019821,7]
[336628950,1724981446345,-481.99,0.00019821,7]
[336628952,1724981446356,-151.0,0.00019821,2]
[336628954,1724981446372,-465.00004137,0.00019873,2]
[336628956,1724981446384,-500.0,0.00019973,2]
[336628958,1724981446395,-3802.12989758,0.0001999,2]
[336628960,1724981446405,-1271.05670928,0.0002,5]
[336628962,1724981446414,-2848.07973008,0.0002,4]
[336628964,1724981446424,-5000.0,0.0002,5]
[336628965,1724981446433,-8301.91521152,0.0002,3]
[336628967,1724981446443,-184.25,0.0002,2]
[336628969,1724981446452,-150.112233,0.0002,2]
[336628970,1724981446462,-150.112233,0.0002,2]
[336628971,1724981446471,-160.05,0.0002,2]
[336628972,1724981446480,-500.0,0.0002,2]
[336628974,1724981446490,-500.0,0.0002,2]
[336628976,1724981446500,-200.0,0.0002,2]
[336628977,1724981446509,-500.0,0.0002,2]
[336628978,1724981446518,-500.0,0.0002,2]
[336628979,1724981446527,-500.0,0.0002,2]
[336628980,1724981446538,-500.0,0.0002,2]
[336628981,1724981446547,-500.0,0.0002,2]
[336628982,1724981446557,-266.49373725,0.0002,2]
[336628983,1724981446566,-500.0,0.0002,2]
[336628984,1724981446575,-173.39,0.0002,2]
[336628985,1724981446585,-585.41003719,0.0002,2]
[336628986,1724981446594,-500.0,0.0002,2]
[336628987,1724981446603,-500.0,0.0002,2]
[336628988,1724981446613,-912.43,0.0002,2]
[336628989,1724981446623,-500.0,0.0002,2]
[336628990,1724981446632,-500.0,0.0002,2]
[336628991,1724981446641,-883.62,0.0002,2]
[336628992,1724981446650,-500.0,0.0002,2]
[336628993,1724981446659,-271.22634458,0.0002,2]
[336628994,1724981446668,-500.0,0.0002,2]
[336628995,1724981446678,-500.0,0.0002,2]
[336628996,1724981446687,-500.0,0.0002,2]
[336628997,1724981446696,-500.0,0.0002,2]
[336628998,1724981446830,-500.0,0.0002,2]
[336628999,1724981446839,-500.0,0.0002,2]
[336629000,1724981446848,-500.0,0.0002,2]
[336629001,1724981446858,-733.84,0.0002,2]
[336629002,1724981446867,-500.0,0.0002,2]
[336629003,1724981446876,-261.22,0.0002,2]
[336629004,1724981446885,-954.1,0.0002,2]
[336629005,1724981446895,-500.0,0.0002,2]
[336629006,1724981446905,-218.29947878,0.0002,2]
[336629007,1724981446914,-705.6,0.0002,2]
[336629008,1724981446923,-763.3,0.0002,2]
[336629009,1724981446932,-500.0,0.0002,2]
[336629010,1724981446941,-2003.9,0.0002,2]
[336629011,1724981446950,-2100.77,0.0002,2]
[336629012,1724981446960,-500.0,0.0002,2]
[336629013,1724981446969,-524.71,0.0002,2]
[336629014,1724981446978,-8591.91,0.0002,2]
[336629015,1724981446987,-500.0,0.0002,2]
[336629016,1724981446996,-525.71,0.0002,2]
[336629017,1724981447006,-2403.84,0.0002,2]
[336629018,1724981447015,-500.0,0.0002,2]
[336629019,1724981447025,-500.0,0.0002,2]
[336629020,1724981447034,-500.0,0.0002,2]
[336629021,1724981447043,-550.47,0.0002,2]
[336629022,1724981447051,-1963.37,0.0002,2]
[336629023,1724981447060,-647.31,0.0002,2]
[336629024,1724981447069,-500.0,0.0002,2]
[336629025,1724981447079,-500.0,0.0002,2]
[336629026,1724981447088,-437.29049779,0.0002,2]
[336629027,1724981447097,-500.0,0.0002,2]
[336629028,1724981447107,-500.0,0.0002,2]
[336629029,1724981447116,-500.0,0.0002,2]
[336629030,1724981447125,-500.0,0.0002,2]
[336629031,1724981447135,-500.0,0.0002,2]
[336629032,1724981447144,-762.74,0.0002,2]
[336629033,1724981447154,-607.66,0.0002,2]
[336629034,1724981447163,-1076.27,0.0002,2]
[336629035,1724981447172,-500.0,0.0002,2]
[336629036,1724981447181,-500.0,0.0002,2]
[336629037,1724981447191,-500.0,0.0002,2]
[336629038,1724981447200,-500.0,0.0002,2]
[336629039,1724981447210,-500.0,0.0002,2]
[336629040,1724981447219,-500.0,0.0002,2]
[336629041,1724981447228,-500.0,0.0002,2]
[336629042,1724981447240,-604.91,0.0002,2]
[336629043,1724981447251,-562.62124821,0.0002,2]
[336629044,1724981447262,-322.13844916,0.0002,2]
[336629045,1724981447271,-500.0,0.0002,2]
[336629046,1724981447282,-535.18,0.0002,2]
[336629047,1724981447294,-500.0,0.0002,2]
[336629048,1724981447304,-1722.82,0.0002,2]
[336629049,1724981447313,-500.0,0.0002,2]
[336629050,1724981447322,-154.74467129,0.0002,2]
[336629051,1724981447332,-500.0,0.0002,2]
[336629052,1724981447341,-507.26,0.0002,2]
[336629053,1724981447353,-500.0,0.0002,2]
[336629054,1724981447365,-785.92,0.0002,2]
[336629055,1724981447379,-500.0,0.0002,2]
[336629056,1724981447389,-500.0,0.0002,2]
[336629057,1724981447399,-606.73,0.0002,2]
[336629058,1724981447409,-814.38,0.0002,2]
[336629059,1724981447418,-500.0,0.0002,2]
[336629060,1724981447428,-5006.8,0.0002,2]
[336629061,1724981447438,-3039.49,0.0002,2]
[336629062,1724981447450,-517.3,0.0002,2]
[336629063,1724981447462,-500.0,0.0002,2]
[336629064,1724981447472,-500.0,0.0002,2]
[336629065,1724981447481,-539.44,0.0002,2]
[336629066,1724981447490,-585.79,0.0002,2]
[336629067,1724981447501,-500.0,0.0002,2]
[336629068,1724981447512,-500.0,0.0002,2]
[336629069,1724981447523,-2062.64,0.0002,2]
[336629070,1724981447534,-500.0,0.0002,2]
[336629071,1724981447545,-1827.66,0.0002,2]
[336629072,1724981447555,-500.0,0.0002,2]
[336629073,1724981447565,-500.0,0.0002,2]
[336629074,1724981447575,-500.0,0.0002,2]
[336629075,1724981447584,-1702.51,0.0002,2]
[336629076,1724981447593,-565.26,0.0002,2]
[336629077,1724981447602,-500.0,0.0002,2]
[336629078,1724981447611,-518.57,0.0002,2]
[336629079,1724981447622,-641.02,0.0002,2]
[336629080,1724981447631,-993.02,0.0002,2]
[336629081,1724981447640,-500.0,0.0002,2]
[336629082,1724981447650,-1272.38,0.0002,2]
[336629083,1724981447661,-500.0,0.0002,2]
[336629084,1724981447670,-1258.18,0.0002,2]
[336629085,1724981447679,-500.0,0.0002,2]
[336629086,1724981447689,-500.0,0.0002,2]
[336629087,1724981447699,-1179.58,0.0002,2]
[336629088,1724981447708,-3944.0,0.0002,2]
[336629089,1724981447719,-801.9,0.0002,2]
[336629090,1724981447729,-2252.08,0.0002,2]
[336629091,1724981447738,-390.33975893,0.00020021,2]
[336629092,1724981447748,-1889.68658877,0.00020173,2]
[336629093,1724981447758,-150.112233,0.000202,2]
[336629094,1724981447769,-150.112233,0.000202,5]
[336629095,1724981447781,-3802.12989758,0.00020263,2]
[336629096,1724981447793,-500.0,0.00020273,2]
[336629097,1724981447804,-500.0,0.00020273,2]
[336629098,1724981447815,-200.0,0.00020273,2]
[336629099,1724981447825,-500.0,0.00020273,2]
[336629100,1724981447834,-475.22,0.00020273,2]
[336629101,1724981447843,-500.0,0.00020273,2]
[336629102,1724981447853,-500.0,0.00020273,2]
[336629103,1724981447863,-500.0,0.00020273,2]
[336629104,1724981447874,-500.0,0.00020273,2]
[336629105,1724981447884,-471.18763825,0.00020273,2]
[336629106,1724981447893,-500.0,0.00020273,2]
[336629107,1724981447902,-912.43,0.00020273,2]
[336629108,1724981447912,-500.0,0.00020273,2]
[336629109,1724981447922,-883.62,0.00020273,2]
[336629110,1724981447932,-500.0,0.00020273,2]
[336629111,1724981447942,-500.0,0.00020273,2]
[336629112,1724981447951,-500.0,0.00020273,2]
[336629113,1724981447960,-500.0,0.00020273,2]
[336629114,1724981447969,-500.0,0.00020273,2]
[336629115,1724981447978,-500.0,0.00020273,2]
[336629116,1724981447987,-500.0,0.00020273,2]
[336629117,1724981447997,-429.94,0.00020273,2]
[336629118,1724981448007,-733.84,0.00020273,2]
[336629119,1724981448017,-500.0,0.00020273,2]
[336629120,1724981448026,-954.1,0.00020273,2]
[336629121,1724981448035,-549.28065179,0.00020273,2]
[336629122,1724981448044,-705.6,0.00020273,2]
[336629123,1724981448053,-763.3,0.00020273,2]
[336629124,1724981448062,-500.0,0.00020273,2]
[336629125,1724981448071,-2003.9,0.00020273,2]
[336629126,1724981448081,-2100.77,0.00020273,2]
[336629127,1724981448091,-500.0,0.00020273,2]
[336629128,1724981448100,-524.71,0.00020273,2]
[336629129,1724981448109,-8591.91,0.00020273,2]
[336629130,1724981448118,-500.0,0.00020273,2]
[336629131,1724981448128,-525.71,0.00020273,2]
[336629132,1724981448137,-2403.84,0.00020273,2]
[336629133,1724981448147,-500.0,0.00020273,2]
[336629134,1724981448156,-500.0,0.00020273,2]
[336629135,1724981448165,-500.0,0.00020273,2]
[336629136,1724981448175,-550.47,0.00020273,2]
[336629137,1724981448184,-1963.37,0.00020273,2]
[336629138,1724981448193,-500.0,0.00020273,2]
[336629139,1724981448203,-647.31,0.00020273,2]
[336629140,1724981448213,-500.0,0.00020273,2]
[336629141,1724981448223,-500.0,0.00020273,2]
[336629142,1724981448233,-500.0,0.00020273,2]
[336629143,1724981448244,-500.0,0.00020273,2]
[336629144,1724981448253,-500.0,0.00020273,2]
[336629145,1724981448263,-762.74,0.00020273,2]
[336629146,1724981448273,-607.66,0.00020273,2]
[336629147,1724981448282,-1076.27,0.00020273,2]
[336629148,1724981448292,-500.0,0.00020273,2]
[336629149,1724981448302,-500.0,0.00020273,2]
[336629150,1724981448311,-500.0,0.00020273,2]
[336629151,1724981448321,-500.0,0.00020273,2]
[336629152,1724981448331,-500.0,0.00020273,2]
[336629153,1724981448341,-500.0,0.00020273,2]
[336629154,1724981448350,-500.0,0.00020273,2]
[336629155,1724981448359,-604.91,0.00020273,2]
[336629156,1724981448375,-500.0,0.00020273,2]
[336629157,1724981448385,-535.18,0.00020273,2]
[336629158,1724981448395,-500.0,0.00020273,2]
[336629159,1724981448405,-1722.82,0.00020273,2]
[336629160,1724981448414,-500.0,0.00020273,2]
[336629161,1724981448424,-500.0,0.00020273,2]
[336629162,1724981448434,-507.26,0.00020273,2]
[336629163,1724981448445,-500.0,0.00020273,2]
[336629164,1724981448454,-785.92,0.00020273,2]
[336629165,1724981448464,-500.0,0.00020273,2]
[336629166,1724981448474,-500.0,0.00020273,2]
[336629167,1724981448485,-606.73,0.00020273,2]
[336629168,1724981448496,-814.38,0.00020273,2]
[336629169,1724981448506,-500.0,0.00020273,2]
[336629170,1724981448517,-5006.8,0.00020273,2]
[336629171,1724981448528,-3039.49,0.00020273,2]
[336629172,1724981448539,-517.3,0.00020273,2]
[336629173,1724981448549,-500.0,0.00020273,2]
[336629174,1724981448559,-500.0,0.00020273,2]
[336629175,1724981448568,-539.44,0.00020273,2]
[336629176,1724981448578,-585.79,0.00020273,2]
[336629177,1724981448589,-500.0,0.00020273,2]
[336629178,1724981448599,-406.06,0.00020273,2]
[336629179,1724981448611,-2062.64,0.00020273,2]
[336629180,1724981448625,-500.0,0.00020273,2]
[336629181,1724981448638,-1827.66,0.00020273,2]
[336629182,1724981448650,-592.42234465,0.00020273,2]
[336629183,1724981448660,-500.0,0.00020273,2]
[336629184,1724981448669,-500.0,0.00020273,2]
[336629185,1724981448679,-1702.51,0.00020273,2]
[336629186,1724981448689,-565.26,0.00020273,2]
[336629187,1724981448699,-500.0,0.00020273,2]
[336629188,1724981448708,-518.57,0.00020273,2]
[336629189,1724981448718,-641.02,0.00020273,2]
[336629190,1724981448727,-993.02,0.00020273,2]
[336629191,1724981448738,-500.0,0.00020273,2]
[336629192,1724981448748,-1272.38,0.00020273,2]
[336629193,1724981448757,-500.0,0.00020273,2]
[336629194,1724981448767,-1258.18,0.00020273,2]
[336629195,1724981448776,-500.0,0.00020273,2]
[336629196,1724981448786,-500.0,0.00020273,2]
[336629197,1724981448796,-1179.58,0.00020273,2]
[336629198,1724981448809,-3944.0,0.00020273,2]
[336629199,1724981448819,-801.9,0.00020273,2]
[336629200,1724981448829,-2252.08,0.00020273,2]
[336629201,1724981448839,-150.112233,0.000203,4]
[336629202,1724981448849,-150.112233,0.000203,4]
[336629203,1724981448858,-951.805009,0.000204,21]
[336629204,1724981448869,-150.112233,0.000205,2]
[336629205,1724981448878,-150.112233,0.000205,2]
[336629206,1724981448889,-1000.0,0.00020521,2]
[336629207,1724981448899,-3802.12989758,0.00020537,2]
[336629208,1724981448908,-472.41474577,0.00020547,2]
[336629209,1724981448919,-500.0,0.00020547,2]
[336629210,1724981448928,-200.0,0.00020547,2]
[336629211,1724981448939,-500.0,0.00020547,2]
[336629212,1724981448950,-500.0,0.00020547,2]
[336629213,1724981448960,-500.0,0.00020547,2]
[336629214,1724981448970,-500.0,0.00020547,2]
[336629215,1724981448979,-500.0,0.00020547,2]
[336629216,1724981448989,-500.0,0.00020547,2]
[336629217,1724981448999,-912.43,0.00020547,2]
[336629218,1724981449009,-313.18340385,0.00020547,2]
[336629219,1724981449020,-883.62,0.00020547,2]
[336629220,1724981449030,-500.0,0.00020547,2]
[336629221,1724981449039,-500.0,0.00020547,2]
[336629222,1724981449049,-500.0,0.00020547,2]
[336629223,1724981449060,-500.0,0.00020547,2]
[336629224,1724981449070,-500.0,0.00020547,2]
[336629225,1724981449079,-500.0,0.00020547,2]
[336629226,1724981449090,-733.84,0.00020547,2]
[336629227,1724981449101,-500.0,0.00020547,2]
[336629228,1724981449112,-954.1,0.00020547,2]
[336629229,1724981449123,-705.6,0.00020547,2]
[336629230,1724981449132,-763.3,0.00020547,2]
[336629231,1724981449142,-500.0,0.00020547,2]
[336629232,1724981449152,-2003.9,0.00020547,2]
[336629233,1724981449162,-2100.77,0.00020547,2]
[336629234,1724981449172,-500.0,0.00020547,2]
[336629235,1724981449181,-524.71,0.00020547,2]
[336629236,1724981449190,-8591.91,0.00020547,2]
[336629237,1724981449200,-309.33813188,0.00020547,2]
[336629238,1724981449209,-525.71,0.00020547,2]
[336629239,1724981449219,-2403.84,0.00020547,2]
[336629240,1724981449229,-500.0,0.00020547,2]
[336629241,1724981449240,-312.25263245,0.00020547,2]
[336629242,1724981449251,-500.0,0.00020547,2]
[336629243,1724981449263,-550.47,0.00020547,2]
[336629244,1724981449273,-1963.37,0.00020547,2]
[336629245,1724981449282,-500.0,0.00020547,2]
[336629246,1724981449293,-647.31,0.00020547,2]
[336629247,1724981449303,-500.0,0.00020547,2]
[336629248,1724981449313,-500.0,0.00020547,2]
[336629249,1724981449325,-500.0,0.00020547,2]
[336629250,1724981449335,-500.0,0.00020547,2]
[336629251,1724981449345,-762.74,0.00020547,2]
[336629252,1724981449354,-607.66,0.00020547,2]
[336629253,1724981449364,-1076.27,0.00020547,2]
[336629254,1724981449377,-500.0,0.00020547,2]
[336629255,1724981449387,-500.0,0.00020547,2]
[336629256,1724981449397,-500.0,0.00020547,2]
[336629257,1724981449407,-500.0,0.00020547,2]
[336629258,1724981449417,-500.0,0.00020547,2]
[336629259,1724981449426,-500.0,0.00020547,2]
[336629260,1724981449435,-375.60791676,0.00020547,2]
[336629261,1724981449447,-604.91,0.00020547,2]
[336629262,1724981449456,-500.0,0.00020547,2]
[336629263,1724981449465,-535.18,0.00020547,2]
[336629264,1724981449475,-207.52603413,0.00020547,2]
[336629265,1724981449484,-1722.82,0.00020547,2]
[336629266,1724981449493,-500.0,0.00020547,2]
[336629267,1724981449503,-500.0,0.00020547,2]
[336629268,1724981449514,-507.26,0.00020547,2]
[336629269,1724981449525,-500.0,0.00020547,2]
[336629270,1724981449535,-785.92,0.00020547,2]
[336629271,1724981449545,-500.0,0.00020547,2]
[336629272,1724981449556,-500.0,0.00020547,2]
[336629273,1724981449566,-606.73,0.00020547,2]
[336629274,1724981449576,-814.38,0.00020547,2]
[336629275,1724981449586,-500.0,0.00020547,2]
[336629276,1724981449596,-5006.8,0.00020547,2]
[336629277,1724981449606,-3039.49,0.00020547,2]
[336629278,1724981449615,-517.3,0.00020547,2]
[336629279,1724981449626,-330.81021782,0.00020547,2]
[336629280,1724981449638,-500.0,0.00020547,2]
[336629281,1724981449649,-585.79,0.00020547,2]
[336629282,1724981449658,-539.44,0.00020547,2]
[336629283,1724981449669,-500.0,0.00020547,2]
[336629284,1724981449679,-2062.64,0.00020547,2]
[336629285,1724981449689,-500.0,0.00020547,2]
[336629286,1724981449699,-1827.66,0.00020547,2]
[336629287,1724981449708,-500.0,0.00020547,2]
[336629288,1724981449719,-500.0,0.00020547,2]
[336629289,1724981449729,-1702.51,0.00020547,2]
[336629290,1724981449739,-565.26,0.00020547,2]
[336629291,1724981449749,-500.0,0.00020547,2]
[336629292,1724981449760,-518.57,0.00020547,2]
[336629293,1724981449770,-641.02,0.00020547,2]
[336629294,1724981449780,-993.02,0.00020547,2]